{"text_format":"1","workbook":"xlsx","n_sheets":2,"sheets":["Protokoll","Info"],"not_rendered":{"charts":0,"images":0,"macros":1,"external_links":0,"defined_names":0,"comments":0,"pivot_tables":0},"unopened":[],"bounds":{"document_bytes":16777216,"sheet_cells":100000,"rows_first":2000,"rows_last":500,"rows_between":2000,"halvings":0,"cell_chars":16384,"cell_head_chars":4096},"cells_cut":0,"cells_raw":0,"read":"whole","date_system":"1900"}

{"sheet":"Protokoll","index":0,"n_rows":36,"n_cols":19,"rows_kept":36,"cut":false,"hidden":false,"merged":[[9,6,10,6],[9,5,10,5],[9,4,10,4],[9,3,10,3],[7,7,7,9],[6,0,6,1],[7,0,7,1],[7,2,7,3],[6,2,6,3],[7,10,7,18],[0,7,0,18],[1,7,1,18],[9,18,10,18],[3,0,3,18],[2,10,2,18],[9,2,10,2],[9,1,10,1],[9,0,10,0],[9,8,9,17],[9,7,10,7],[5,0,5,1],[5,2,5,3],[5,7,5,13],[6,7,6,9],[6,10,6,18]]}
[null,null,null,null,null,null,null,"Täidetud protokoll saata:  alosi@hot.ee"]
[null,null,null,null,null,null,null,"Info: Tõnis Balodis +3725047332"]
[null,null,null,null,null,null,null,null,null,null,"Täidetavad lahtrid toonitud"]
["Kütiliin 2016 Registreerimis-tulemusteleht"]
[]
["Toimumiskoht:",null,null,null,"tiirus",null,null,"Esindaja Kontaktandmed:"]
["Kuupäev:",null,null,null,null,null,null,"E-mail: "]
["Kohtunik:",null,null,null,null,null,null,"Telefon: "]
[]
["Jnr.","Perenimi","Eesnimi","Sünni- aasta","Sugu M/N","Maakond","Meeskond","Relv S/V","Tulemused",null,null,null,null,null,null,null,null,null,"Kokku"]
[null,null,null,null,null,null,null,null,1,2,3,4,5,6,7,8,9,10]
[1,null,null,null,null,null,null,null,null,null,null,null,null,null,null,null,null,null,{"$f":"IF(I12=\"\",\"\",SUM(I12:R12))","v":""}]
[2,null,null,null,null,null,null,null,null,null,null,null,null,null,null,null,null,null,{"$f":"IF(I13=\"\",\"\",SUM(I13:R13))","v":""}]
[3,null,null,null,null,null,null,null,null,null,null,null,null,null,null,null,null,null,""]
[4,null,null,null,null,null,null,null,null,null,null,null,null,null,null,null,null,null,""]
[5,null,null,null,null,null,null,null,null,null,null,null,null,null,null,null,null,null,""]
[6,null,null,null,null,null,null,null,null,null,null,null,null,null,null,null,null,null,""]
[7,null,null,null,null,null,null,null,null,null,null,null,null,null,null,null,null,null,""]
[8,null,null,null,null,null,null,null,null,null,null,null,null,null,null,null,null,null,""]
[9,null,null,null,null,null,null,null,null,null,null,null,null,null,null,null,null,null,""]
[10,null,null,null,null,null,null,null,null,null,null,null,null,null,null,null,null,null,""]
[11,null,null,null,null,null,null,null,null,null,null,null,null,null,null,null,null,null,""]
[12,null,null,null,null,null,null,null,null,null,null,null,null,null,null,null,null,null,""]
[13,null,null,null,null,null,null,null,null,null,null,null,null,null,null,null,null,null,""]
[14,null,null,null,null,null,null,null,null,null,null,null,null,null,null,null,null,null,""]
[15,null,null,null,null,null,null,null,null,null,null,null,null,null,null,null,null,null,""]
[16,null,null,null,null,null,null,null,null,null,null,null,null,null,null,null,null,null,""]
[17,null,null,null,null,null,null,null,null,null,null,null,null,null,null,null,null,null,""]
[18,null,null,null,null,null,null,null,null,null,null,null,null,null,null,null,null,null,""]
[19,null,null,null,null,null,null,null,null,null,null,null,null,null,null,null,null,null,""]
[20,null,null,null,null,null,null,null,null,null,null,null,null,null,null,null,null,null,""]
[21,null,null,null,null,null,null,null,null,null,null,null,null,null,null,null,null,null,""]
[22,null,null,null,null,null,null,null,null,null,null,null,null,null,null,null,null,null,""]
[23,null,null,null,null,null,null,null,null,null,null,null,null,null,null,null,null,null,""]
[24,null,null,null,null,null,null,null,null,null,null,null,null,null,null,null,null,null,""]
[25,null,null,null,null,null,null,null,null,null,null,null,null,null,null,null,null,null,""]

{"sheet":"Info","index":1,"n_rows":16,"n_cols":3,"rows_kept":16,"cut":false,"hidden":true,"merged":[]}
["Sugu","Maakond","Relv"]
["M","Harju maakond","S"]
["N","Hiiu maakond","V"]
[null,"Ida-Viru maakond"]
[null,"Jõgeva maakond"]
[null,"Järva maakond"]
[null,"Lääne maakond"]
[null,"Lääne-Viru maakond"]
[null,"Põlva maakond"]
[null,"Pärnu maakond"]
[null,"Rapla maakond"]
[null,"Saare maakond"]
[null,"Tartu maakond"]
[null,"Valga maakond"]
[null,"Viljandi maakond"]
[null,"Võru maakond"]